[Event "Titled Tuesday Blitz March 21 Early 2023"]
[White "lluiss"]
[Black "Thiel, Thomas"]
[BlackFideId "4615964"]
[WhiteElo "2164"]
[BlackElo "2237"]
[Result "1/2-1/2"]
[Round "09"]
[TimeControl "180+2"]
[Date "2023.03.21"]
[WhiteClock "0:00:14"]
[BlackClock "0:00:20"]

1. Nf3 {[%clk 0:03:00]}  Nf6 {[%clk 0:02:57]} 2. c4 {[%clk 0:03:00]}  g6 {[%clk 0:02:56]} 3. g3 {[%clk 0:02:59]}  Bg7 {[%clk 0:02:56]} 4. Bg2 {[%clk 0:03:00]}  O-O {[%clk 0:02:55]} 5. O-O {[%clk 0:03:00]}  c6 {[%clk 0:02:54]} 6. d4 {[%clk 0:02:59]}  d5 {[%clk 0:02:54]} 7. cxd5 {[%clk 0:02:59]}  cxd5 {[%clk 0:02:54]} 8. Nc3 {[%clk 0:03:00]}  Bf5 {[%clk 0:02:52]} 9. Ne5 {[%clk 0:02:56]}  Ne4 {[%clk 0:02:46]} 10. Qb3 {[%clk 0:02:37]}  Nc6 {[%clk 0:02:42]} 11. Nxc6 {[%clk 0:02:16]}  bxc6 {[%clk 0:02:42]} 12. Nxe4 {[%clk 0:02:09]}  Bxe4 {[%clk 0:02:40]} 13. Be3 {[%clk 0:02:02]}  Bxg2 {[%clk 0:02:35]} 14. Kxg2 {[%clk 0:02:02]}  e5 {[%clk 0:02:33]} 15. Rfd1 {[%clk 0:01:49]}  Rb8 {[%clk 0:02:23]} 16. Qc3 {[%clk 0:01:49]}  Qb6 {[%clk 0:02:20]} 17. b3 {[%clk 0:01:46]}  e4 {[%clk 0:02:17]} 18. Rac1 {[%clk 0:01:40]}  Rfc8 {[%clk 0:02:16]} 19. Bf4 {[%clk 0:01:40]}  Rb7 {[%clk 0:02:13]} 20. Bd6 {[%clk 0:01:34]}  Qa6 {[%clk 0:02:04]} 21. Rc2 {[%clk 0:01:27]}  Bf8 {[%clk 0:01:46]} 22. Bxf8 {[%clk 0:01:27]}  Kxf8 {[%clk 0:01:42]} 23. Qe3 {[%clk 0:01:24]}  Kg7 {[%clk 0:01:41]} 24. Rdc1 {[%clk 0:01:23]}  Rb4 {[%clk 0:01:37]} 25. Qc3 {[%clk 0:01:18]}  Qb6 {[%clk 0:01:36]} 26. e3 {[%clk 0:01:18]}  a5 {[%clk 0:01:34]} 27. Qc5 {[%clk 0:01:18]}  a4 {[%clk 0:01:19]} 28. Qxb6 {[%clk 0:01:15]}  Rxb6 {[%clk 0:01:18]} 29. bxa4 {[%clk 0:01:15]}  Ra8 {[%clk 0:01:16]} 30. Rxc6 {[%clk 0:01:11]}  Rb2 {[%clk 0:01:11]} 31. R1c2 {[%clk 0:01:05]}  Rxc2 {[%clk 0:01:02]} 32. Rxc2 {[%clk 0:01:05]}  Kf6 {[%clk 0:01:02]} 33. Rc5 {[%clk 0:00:52]}  Ke6 {[%clk 0:00:59]} 34. a5 {[%clk 0:00:51]}  Kd6 {[%clk 0:00:59]} 35. a4 {[%clk 0:00:48]}  h5 {[%clk 0:00:49]} 36. h3 {[%clk 0:00:44]}  f6 {[%clk 0:00:47]} 37. f3 {[%clk 0:00:41]}  g5 {[%clk 0:00:45]} 38. fxe4 {[%clk 0:00:40]}  dxe4 {[%clk 0:00:43]} 39. Rf5 {[%clk 0:00:30]}  Ke6 {[%clk 0:00:42]} 40. Rb5 {[%clk 0:00:31]}  f5 {[%clk 0:00:39]} 41. Rb6+ {[%clk 0:00:29]}  Kd5 {[%clk 0:00:39]} 42. a6 {[%clk 0:00:30]}  Kc4 {[%clk 0:00:37]} 43. g4 {[%clk 0:00:21]}  hxg4 {[%clk 0:00:34]} 44. hxg4 {[%clk 0:00:21]}  fxg4 {[%clk 0:00:32]} 45. Kg3 {[%clk 0:00:20]}  Kd3 {[%clk 0:00:32]} 46. Kxg4 {[%clk 0:00:19]}  Kxe3 {[%clk 0:00:32]} 47. d5 {[%clk 0:00:19]}  Kd4 {[%clk 0:00:28]} 48. Kxg5 {[%clk 0:00:19]}  Kxd5 {[%clk 0:00:24]} 49. Kf4 {[%clk 0:00:18]}  Kc5 {[%clk 0:00:24]} 50. Re6 {[%clk 0:00:17]}  Kb4 {[%clk 0:00:23]} 51. Kxe4 {[%clk 0:00:16]}  Kxa4 {[%clk 0:00:22]} 52. Kd5 {[%clk 0:00:15]}  Ka5 {[%clk 0:00:21]} 53. Kc4 {[%clk 0:00:13]}  Rxa6 {[%clk 0:00:21]} 54. Rxa6+ {[%clk 0:00:14]}  Kxa6 {[%clk 0:00:20]} 1/2-1/2


[Site "https://www.chess.com"]

[Event "Titled Tuesday Blitz March 21 Early 2023"]
[White "monkins"]
[Black "Latreche, Khadidja"]
[BlackFideId "7901780"]
[WhiteElo "2233"]
[BlackElo "1869"]
[Result "1-0"]
[Round "09"]
[TimeControl "180+2"]
[Date "2023.03.21"]
[WhiteClock "0:00:09"]
[BlackClock "0:00:16"]

1. Nf3 {[%clk 0:02:36]}  c5 {[%clk 0:02:52]} 2. c4 {[%clk 0:02:36]}  Nc6 {[%clk 0:02:51]} 3. d4 {[%clk 0:02:35]}  cxd4 {[%clk 0:02:51]} 4. Nxd4 {[%clk 0:02:36]}  g6 {[%clk 0:02:51]} 5. Nc3 {[%clk 0:02:35]}  Bg7 {[%clk 0:02:52]} 6. Nc2 {[%clk 0:02:35]}  e6 {[%clk 0:02:50]} 7. g3 {[%clk 0:02:35]}  Nge7 {[%clk 0:02:50]} 8. Bg2 {[%clk 0:02:35]}  O-O {[%clk 0:02:50]} 9. O-O {[%clk 0:02:35]}  a6 {[%clk 0:02:49]} 10. Bd2 {[%clk 0:02:33]}  Rb8 {[%clk 0:02:49]} 11. Rc1 {[%clk 0:02:07]}  d5 {[%clk 0:02:47]} 12. cxd5 {[%clk 0:02:06]}  exd5 {[%clk 0:02:47]} 13. e4 {[%clk 0:01:41]}  dxe4 {[%clk 0:02:41]} 14. Nxe4 {[%clk 0:01:35]}  Bxb2 {[%clk 0:02:38]} 15. Rb1 {[%clk 0:01:34]}  Bg7 {[%clk 0:02:37]} 16. Bf4 {[%clk 0:01:18]}  Ra8 {[%clk 0:02:30]} 17. Qc1 {[%clk 0:01:13]}  Be6 {[%clk 0:02:26]} 18. Bh6 {[%clk 0:01:05]}  Nf5 {[%clk 0:02:13]} 19. Bxg7 {[%clk 0:01:04]}  Nxg7 {[%clk 0:02:09]} 20. Rxb7 {[%clk 0:00:59]}  Bxa2 {[%clk 0:02:05]} 21. Qb2 {[%clk 0:00:54]}  Bc4 {[%clk 0:01:45]} 22. Nf6+ {[%clk 0:00:53]}  Kh8 {[%clk 0:01:45]} 23. Bxc6 {[%clk 0:00:52]}  Bxf1 {[%clk 0:01:44]} 24. Kxf1 {[%clk 0:00:52]}  Qd3+ {[%clk 0:01:39]} 25. Kg2 {[%clk 0:00:47]}  Rac8 {[%clk 0:01:39]} 26. Be4 {[%clk 0:00:43]}  Qd6 {[%clk 0:01:31]} 27. Ne3 {[%clk 0:00:32]}  Ne6 {[%clk 0:01:26]} 28. Nfd5+ {[%clk 0:00:26]}  Ng7 {[%clk 0:01:10]} 29. Rb6 {[%clk 0:00:14]}  Qc5 {[%clk 0:01:07]} 30. Rxa6 {[%clk 0:00:13]}  Rce8 {[%clk 0:01:05]} 31. Bf3 {[%clk 0:00:12]}  Re5 {[%clk 0:01:00]} 32. Rb6 {[%clk 0:00:11]}  Rfe8 {[%clk 0:00:56]} 33. Nf6 {[%clk 0:00:10]}  Rd8 {[%clk 0:00:44]} 34. Nd7 {[%clk 0:00:02]}  Rxd7 {[%clk 0:00:21]} 35. Rb8+ {[%clk 0:00:02]}  Ne8 {[%clk 0:00:17]} 36. Rxe8+ {[%clk 0:00:03]}  Kg7 {[%clk 0:00:17]} 37. Rxe5 {[%clk 0:00:04]}  Qxe5 {[%clk 0:00:17]} 38. Qxe5+ {[%clk 0:00:03]}  f6 {[%clk 0:00:16]} 39. Qf4 {[%clk 0:00:04]}  g5 {[%clk 0:00:16]} 40. Qc4 {[%clk 0:00:04]}  Rf7 {[%clk 0:00:16]} 41. Nf5+ {[%clk 0:00:05]}  Kg6 {[%clk 0:00:16]} 42. g4 {[%clk 0:00:05]}  h5 {[%clk 0:00:16]} 43. Qxf7+ {[%clk 0:00:05]}  Kxf7 {[%clk 0:00:16]} 44. gxh5 {[%clk 0:00:06]}  Ke6 {[%clk 0:00:15]} 45. Bg4 {[%clk 0:00:07]}  Ke5 {[%clk 0:00:16]} 46. Kg3 {[%clk 0:00:08]}  Ke4 {[%clk 0:00:16]} 47. h6 {[%clk 0:00:09]} 1-0


[Site "https://www.chess.com"]

[Event "Titled Tuesday Blitz March 21 Early 2023"]
[White "Vargas Rodriguez, Wilver"]
[Black "Sabar, Ethmane Daouda"]
[WhiteFideId "3509672"]
[BlackFideId "19600097"]
[WhiteElo "2238"]
[BlackElo "1950"]
[Result "0-1"]
[Round "09"]
[TimeControl "180+2"]
[Date "2023.03.21"]
[WhiteClock "0:00:24"]
[BlackClock "0:00:33"]

1. e4 {[%clk 0:02:54]}  c5 {[%clk 0:02:44]} 2. Nf3 {[%clk 0:02:54]}  Nc6 {[%clk 0:02:43]} 3. d4 {[%clk 0:02:52]}  cxd4 {[%clk 0:02:44]} 4. Nxd4 {[%clk 0:02:53]}  Nf6 {[%clk 0:02:43]} 5. Nc3 {[%clk 0:02:52]}  e5 {[%clk 0:02:44]} 6. Nf3 {[%clk 0:02:52]}  Bb4 {[%clk 0:02:42]} 7. Bc4 {[%clk 0:02:50]}  Bxc3+ {[%clk 0:02:27]} 8. bxc3 {[%clk 0:02:51]}  h6 {[%clk 0:02:25]} 9. O-O {[%clk 0:02:50]}  d6 {[%clk 0:02:25]} 10. Re1 {[%clk 0:02:48]}  O-O {[%clk 0:02:24]} 11. Ba3 {[%clk 0:02:46]}  Ne8 {[%clk 0:02:18]} 12. Qd3 {[%clk 0:02:32]}  Be6 {[%clk 0:02:17]} 13. Bb3 {[%clk 0:02:28]}  Qc7 {[%clk 0:02:15]} 14. Rad1 {[%clk 0:02:26]}  Rd8 {[%clk 0:02:13]} 15. Bd5 {[%clk 0:02:13]}  Qa5 {[%clk 0:01:57]} 16. c4 {[%clk 0:02:10]}  Bg4 {[%clk 0:01:48]} 17. Rb1 {[%clk 0:01:25]}  Bxf3 {[%clk 0:01:42]} 18. Qxf3 {[%clk 0:01:23]}  Nd4 {[%clk 0:01:40]} 19. Qd3 {[%clk 0:01:15]}  Nxc2 {[%clk 0:01:25]} 20. Qxc2 {[%clk 0:01:16]}  Qxa3 {[%clk 0:01:22]} 21. Rxb7 {[%clk 0:01:15]}  Nf6 {[%clk 0:01:20]} 22. Reb1 {[%clk 0:00:37]}  Nxd5 {[%clk 0:00:53]} 23. cxd5 {[%clk 0:00:38]}  Rc8 {[%clk 0:00:51]} 24. Qb3 {[%clk 0:00:35]}  Rc1+ {[%clk 0:00:48]} 25. Qd1 {[%clk 0:00:30]}  Rxd1+ {[%clk 0:00:47]} 26. Rxd1 {[%clk 0:00:31]}  Qxa2 {[%clk 0:00:43]} 27. f3 {[%clk 0:00:30]}  Rc8 {[%clk 0:00:37]} 28. h4 {[%clk 0:00:28]}  Rc2 {[%clk 0:00:37]} 29. Kh2 {[%clk 0:00:23]}  Rxg2+ {[%clk 0:00:37]} 30. Kh3 {[%clk 0:00:24]}  Qf2 {[%clk 0:00:33]} 0-1


[Site "https://www.chess.com"]

[Event "Titled Tuesday Blitz March 21 Early 2023"]
[White "Corredor Castellanos, Camilo"]
[Black "Vargas Pereda, Jesus Manue"]
[WhiteFideId "4425871"]
[BlackFideId "5115710"]
[WhiteElo "1994"]
[BlackElo "1914"]
[Result "1-0"]
[Round "09"]
[TimeControl "180+2"]
[Date "2023.03.21"]
[WhiteClock "0:01:45"]
[BlackClock "0:00:32"]

1. e4 {[%clk 0:03:00]}  c6 {[%clk 0:02:47]} 2. d4 {[%clk 0:03:00]}  d5 {[%clk 0:02:46]} 3. e5 {[%clk 0:03:00]}  Bf5 {[%clk 0:02:46]} 4. Nf3 {[%clk 0:02:59]}  e6 {[%clk 0:02:43]} 5. Be2 {[%clk 0:02:58]}  c5 {[%clk 0:02:42]} 6. c3 {[%clk 0:02:56]}  Nc6 {[%clk 0:02:41]} 7. O-O {[%clk 0:02:55]}  Qb6 {[%clk 0:02:37]} 8. a4 {[%clk 0:02:45]}  cxd4 {[%clk 0:02:27]} 9. cxd4 {[%clk 0:02:43]}  Be4 {[%clk 0:02:22]} 10. a5 {[%clk 0:02:40]}  Nxa5 {[%clk 0:02:10]} 11. Nc3 {[%clk 0:02:38]}  Bxf3 {[%clk 0:02:09]} 12. Bxf3 {[%clk 0:02:36]}  Ne7 {[%clk 0:02:08]} 13. Na4 {[%clk 0:02:26]}  Qb3 {[%clk 0:02:00]} 14. Nc5 {[%clk 0:02:23]}  Qxd1 {[%clk 0:01:59]} 15. Bxd1 {[%clk 0:02:23]}  Nec6 {[%clk 0:01:55]} 16. Ba4 {[%clk 0:02:21]}  Bxc5 {[%clk 0:01:52]} 17. dxc5 {[%clk 0:02:21]}  O-O {[%clk 0:01:51]} 18. Bd2 {[%clk 0:02:21]}  Nc4 {[%clk 0:01:50]} 19. Bc3 {[%clk 0:02:20]}  N6xe5 {[%clk 0:01:49]} 20. b3 {[%clk 0:02:19]}  a6 {[%clk 0:01:33]} 21. bxc4 {[%clk 0:02:17]}  Nxc4 {[%clk 0:01:32]} 22. Rab1 {[%clk 0:02:17]}  Rab8 {[%clk 0:01:28]} 23. Bb3 {[%clk 0:02:15]}  b5 {[%clk 0:01:20]} 24. cxb6 {[%clk 0:02:14]}  Nxb6 {[%clk 0:01:20]} 25. Be5 {[%clk 0:02:14]}  Ra8 {[%clk 0:01:16]} 26. Rfc1 {[%clk 0:02:13]}  a5 {[%clk 0:01:15]} 27. Bc7 {[%clk 0:02:13]}  Nd7 {[%clk 0:01:12]} 28. Ba4 {[%clk 0:02:12]}  Nf6 {[%clk 0:01:10]} 29. Rb7 {[%clk 0:02:12]}  Rfc8 {[%clk 0:01:10]} 30. Rcb1 {[%clk 0:02:11]}  h6 {[%clk 0:01:09]} 31. h3 {[%clk 0:02:09]}  Ne4 {[%clk 0:01:07]} 32. Be5 {[%clk 0:02:04]}  f6 {[%clk 0:00:58]} 33. Bd4 {[%clk 0:02:01]}  e5 {[%clk 0:00:58]} 34. Bb6 {[%clk 0:02:02]}  Nc3 {[%clk 0:00:56]} 35. Ra1 {[%clk 0:01:53]}  Rc4 {[%clk 0:00:50]} 36. Bb3 {[%clk 0:01:52]}  Rb4 {[%clk 0:00:42]} 37. Rc7 {[%clk 0:01:50]}  Ne2+ {[%clk 0:00:38]} 38. Kf1 {[%clk 0:01:49]}  Rxb3 {[%clk 0:00:34]} 39. Rxa5 {[%clk 0:01:48]}  Ng3+ {[%clk 0:00:31]} 40. fxg3 {[%clk 0:01:45]}  Rxb6 {[%clk 0:00:32]} 41. Rxa8+ {[%clk 0:01:45]} 1-0


[Site "https://www.chess.com"]

[Event "Titled Tuesday Blitz March 21 Early 2023"]
[White "Duda, Jan-Krzysztof"]
[Black "Lazavik, Denis"]
[WhiteFideId "1170546"]
[BlackFideId "13515110"]
[WhiteElo "2790"]
[BlackElo "2560"]
[Result "0-1"]
[Round "10"]
[TimeControl "180+2"]
[Date "2023.03.21"]
[WhiteClock "0:00:03"]
[BlackClock "0:00:05"]

1. e4 {[%clk 0:03:00]}  e5 {[%clk 0:02:59]} 2. Nf3 {[%clk 0:03:01]}  Nc6 {[%clk 0:03:00]} 3. Bb5 {[%clk 0:03:02]}  Nf6 {[%clk 0:03:01]} 4. d3 {[%clk 0:03:01]}  Bc5 {[%clk 0:03:01]} 5. Bxc6 {[%clk 0:02:59]}  dxc6 {[%clk 0:03:01]} 6. O-O {[%clk 0:02:58]}  Qd6 {[%clk 0:03:01]} 7. Nbd2 {[%clk 0:02:52]}  Be6 {[%clk 0:03:01]} 8. b3 {[%clk 0:02:49]}  a5 {[%clk 0:03:01]} 9. a4 {[%clk 0:02:42]}  Nd7 {[%clk 0:02:56]} 10. Ng5 {[%clk 0:02:39]}  f6 {[%clk 0:02:44]} 11. Nxe6 {[%clk 0:02:36]}  Qxe6 {[%clk 0:02:45]} 12. Qh5+ {[%clk 0:02:33]}  Qf7 {[%clk 0:02:41]} 13. Qg4 {[%clk 0:02:27]}  h5 {[%clk 0:02:36]} 14. Qe2 {[%clk 0:02:26]}  Nf8 {[%clk 0:02:35]} 15. Nc4 {[%clk 0:02:23]}  Ne6 {[%clk 0:02:36]} 16. Be3 {[%clk 0:02:11]}  Bd4 {[%clk 0:02:33]} 17. Rac1 {[%clk 0:02:06]}  b6 {[%clk 0:02:31]} 18. Kh1 {[%clk 0:01:58]}  g5 {[%clk 0:02:24]} 19. Bd2 {[%clk 0:01:50]}  Bc5 {[%clk 0:02:18]} 20. c3 {[%clk 0:01:50]}  Be7 {[%clk 0:02:00]} 21. Rfd1 {[%clk 0:01:44]}  Rd8 {[%clk 0:01:56]} 22. Qf1 {[%clk 0:01:35]}  Kf8 {[%clk 0:01:28]} 23. b4 {[%clk 0:01:27]}  axb4 {[%clk 0:01:23]} 24. cxb4 {[%clk 0:01:28]}  Nd4 {[%clk 0:01:24]} 25. Bc3 {[%clk 0:01:28]}  c5 {[%clk 0:00:37]} 26. b5 {[%clk 0:01:14]}  Ra8 {[%clk 0:00:37]} 27. Bxd4 {[%clk 0:00:31]}  cxd4 {[%clk 0:00:37]} 28. Ra1 {[%clk 0:00:32]}  Bb4 {[%clk 0:00:35]} 29. Rdc1 {[%clk 0:00:20]}  Kg7 {[%clk 0:00:34]} 30. Qd1 {[%clk 0:00:19]}  Bc3 {[%clk 0:00:34]} 31. Ra3 {[%clk 0:00:10]}  Ra7 {[%clk 0:00:33]} 32. Raxc3 {[%clk 0:00:05]}  dxc3 {[%clk 0:00:33]} 33. Rxc3 {[%clk 0:00:06]}  Rha8 {[%clk 0:00:33]} 34. Nb2 {[%clk 0:00:07]}  Rd8 {[%clk 0:00:32]} 35. h3 {[%clk 0:00:07]}  Rd4 {[%clk 0:00:31]} 36. Qc1 {[%clk 0:00:07]}  Qd7 {[%clk 0:00:29]} 37. Kh2 {[%clk 0:00:07]}  Kg6 {[%clk 0:00:27]} 38. Rc6 {[%clk 0:00:08]}  Rd6 {[%clk 0:00:27]} 39. Rc4 {[%clk 0:00:08]}  Rd4 {[%clk 0:00:27]} 40. Rc3 {[%clk 0:00:09]}  Rd6 {[%clk 0:00:22]} 41. Qc2 {[%clk 0:00:09]}  Rd4 {[%clk 0:00:22]} 42. Rc6 {[%clk 0:00:09]}  Rd6 {[%clk 0:00:22]} 43. Rc4 {[%clk 0:00:10]}  Rd4 {[%clk 0:00:22]} 44. Rc3 {[%clk 0:00:10]}  Qe7 {[%clk 0:00:19]} 45. Nc4 {[%clk 0:00:10]}  Qb4 {[%clk 0:00:19]} 46. Nb2 {[%clk 0:00:05]}  Qe7 {[%clk 0:00:19]} 47. Qb3 {[%clk 0:00:05]}  Qf7 {[%clk 0:00:19]} 48. Qd1 {[%clk 0:00:05]}  Qd7 {[%clk 0:00:19]} 49. Qf3 {[%clk 0:00:05]}  Rb4 {[%clk 0:00:18]} 50. Rc2 {[%clk 0:00:05]}  Rd4 {[%clk 0:00:19]} 51. Qe2 {[%clk 0:00:05]}  Ra8 {[%clk 0:00:18]} 52. Rc3 {[%clk 0:00:06]}  Rc8 {[%clk 0:00:19]} 53. Qc2 {[%clk 0:00:06]}  Rd6 {[%clk 0:00:18]} 54. Nc4 {[%clk 0:00:06]}  Rd4 {[%clk 0:00:19]} 55. Nxb6 {[%clk 0:00:06]}  cxb6 {[%clk 0:00:13]} 56. Rxc8 {[%clk 0:00:07]}  Rxd3 {[%clk 0:00:12]} 57. Rg8+ {[%clk 0:00:07]}  Kh7 {[%clk 0:00:11]} 58. Rb8 {[%clk 0:00:06]}  Rd6 {[%clk 0:00:06]} 59. Qc4 {[%clk 0:00:06]}  Qg7 {[%clk 0:00:04]} 60. Qc8 {[%clk 0:00:03]}  g4 {[%clk 0:00:04]} 61. Qf5+ {[%clk 0:00:03]}  Kh6 {[%clk 0:00:04]} 62. h4 {[%clk 0:00:04]}  Rd3 {[%clk 0:00:04]} 63. g3 {[%clk 0:00:04]}  Rf3 {[%clk 0:00:04]} 64. Qe6 {[%clk 0:00:03]}  Rxf2+ {[%clk 0:00:05]} 65. Kg1 {[%clk 0:00:03]}  Rf3 {[%clk 0:00:06]} 66. Kg2 {[%clk 0:00:04]}  Qc7 {[%clk 0:00:05]} 67. Rc8 {[%clk 0:00:04]}  Qg7 {[%clk 0:00:05]} 68. Rd8 {[%clk 0:00:03]}  Qh7 {[%clk 0:00:05]} 69. Qc6 {[%clk 0:00:02]}  Qf7 {[%clk 0:00:05]} 70. Qa8 {[%clk 0:00:03]}  Qa2+ {[%clk 0:00:05]} 71. Kg1 {[%clk 0:00:03]}  Qf2+ {[%clk 0:00:05]} 0-1


[Site "https://www.chess.com"]

[Event "Titled Tuesday Blitz March 21 Early 2023"]
[White "Bortnyk, Olexandr"]
[Black "Dubov, Daniil"]
[WhiteFideId "14120828"]
[BlackFideId "24126055"]
[WhiteElo "2734"]
[BlackElo "2802"]
[Result "0-1"]
[Round "10"]
[TimeControl "180+2"]
[Date "2023.03.21"]
[WhiteClock "0:00:01"]
[BlackClock "0:00:05"]

1. d4 {[%clk 0:03:00]}  d5 {[%clk 0:03:00]} 2. Nc3 {[%clk 0:03:01]}  Bf5 {[%clk 0:02:59]} 3. Bf4 {[%clk 0:03:01]}  e6 {[%clk 0:03:00]} 4. e3 {[%clk 0:03:00]}  Bd6 {[%clk 0:02:58]} 5. Nf3 {[%clk 0:03:00]}  Ne7 {[%clk 0:02:58]} 6. Bg3 {[%clk 0:02:59]}  O-O {[%clk 0:02:56]} 7. Bd3 {[%clk 0:02:59]}  Nd7 {[%clk 0:02:53]} 8. e4 {[%clk 0:02:52]}  dxe4 {[%clk 0:02:47]} 9. Nxe4 {[%clk 0:02:53]}  Bxg3 {[%clk 0:02:33]} 10. hxg3 {[%clk 0:02:53]}  c5 {[%clk 0:02:33]} 11. Qd2 {[%clk 0:02:20]}  c4 {[%clk 0:02:07]} 12. Bxc4 {[%clk 0:01:41]}  Bxe4 {[%clk 0:02:07]} 13. Bd3 {[%clk 0:01:38]}  Bxd3 {[%clk 0:01:54]} 14. Qxd3 {[%clk 0:01:39]}  Qa5+ {[%clk 0:01:47]} 15. c3 {[%clk 0:01:38]}  Qf5 {[%clk 0:01:47]} 16. Qe2 {[%clk 0:01:39]}  Nf6 {[%clk 0:01:43]} 17. O-O-O {[%clk 0:01:37]}  Rac8 {[%clk 0:01:29]} 18. Ne5 {[%clk 0:01:35]}  Nc6 {[%clk 0:01:26]} 19. Nc4 {[%clk 0:01:21]}  Rfd8 {[%clk 0:01:03]} 20. Ne3 {[%clk 0:01:14]}  Qe4 {[%clk 0:00:59]} 21. Rh4 {[%clk 0:01:11]}  Qg6 {[%clk 0:00:57]} 22. Nc2 {[%clk 0:01:05]}  h6 {[%clk 0:00:55]} 23. Kb1 {[%clk 0:01:01]}  a6 {[%clk 0:00:52]} 24. Ka1 {[%clk 0:00:59]}  e5 {[%clk 0:00:50]} 25. dxe5 {[%clk 0:00:52]}  Rxd1+ {[%clk 0:00:50]} 26. Qxd1 {[%clk 0:00:53]}  Nxe5 {[%clk 0:00:50]} 27. Rd4 {[%clk 0:00:53]}  Nc6 {[%clk 0:00:48]} 28. Rd6 {[%clk 0:00:53]}  Qf5 {[%clk 0:00:47]} 29. f3 {[%clk 0:00:51]}  Qe5 {[%clk 0:00:44]} 30. g4 {[%clk 0:00:49]}  Qxd6 {[%clk 0:00:35]} 31. Qxd6 {[%clk 0:00:45]}  Rd8 {[%clk 0:00:35]} 32. Qxd8+ {[%clk 0:00:43]}  Nxd8 {[%clk 0:00:36]} 33. Ne3 {[%clk 0:00:41]}  Kf8 {[%clk 0:00:36]} 34. b4 {[%clk 0:00:41]}  g6 {[%clk 0:00:36]} 35. Kb2 {[%clk 0:00:40]}  Ke7 {[%clk 0:00:36]} 36. c4 {[%clk 0:00:41]}  Kd6 {[%clk 0:00:33]} 37. Kc3 {[%clk 0:00:39]}  Ke5 {[%clk 0:00:31]} 38. g3 {[%clk 0:00:38]}  Nc6 {[%clk 0:00:28]} 39. Nc2 {[%clk 0:00:35]}  h5 {[%clk 0:00:26]} 40. b5 {[%clk 0:00:33]}  axb5 {[%clk 0:00:25]} 41. cxb5 {[%clk 0:00:34]}  Na7 {[%clk 0:00:24]} 42. gxh5 {[%clk 0:00:35]}  Nxh5 {[%clk 0:00:22]} 43. g4 {[%clk 0:00:35]}  Nf4 {[%clk 0:00:22]} 44. Kc4 {[%clk 0:00:35]}  b6 {[%clk 0:00:20]} 45. a4 {[%clk 0:00:29]}  Nd5 {[%clk 0:00:16]} 46. Nd4 {[%clk 0:00:22]}  Kd6 {[%clk 0:00:17]} 47. Nb3 {[%clk 0:00:21]}  Nc8 {[%clk 0:00:16]} 48. Kd4 {[%clk 0:00:20]}  Nc7 {[%clk 0:00:15]} 49. Nd2 {[%clk 0:00:17]}  Ne6+ {[%clk 0:00:14]} 50. Kc4 {[%clk 0:00:18]}  Ke5 {[%clk 0:00:12]} 51. Kb4 {[%clk 0:00:02]}  Nd6 {[%clk 0:00:12]} 52. a5 {[%clk 0:00:02]}  bxa5+ {[%clk 0:00:12]} 53. Kxa5 {[%clk 0:00:03]}  Nd4 {[%clk 0:00:13]} 54. b6 {[%clk 0:00:04]}  Kf4 {[%clk 0:00:13]} 55. Kb4 {[%clk 0:00:03]}  Nb7 {[%clk 0:00:05]} 56. Kc4 {[%clk 0:00:01]}  Ke3 {[%clk 0:00:05]} 0-1


[Site "https://www.chess.com"]

[Event "Titled Tuesday Blitz March 21 Early 2023"]
[White "Wei, Yi"]
[Black "Paravyan, David"]
[WhiteFideId "8603405"]
[BlackFideId "4194985"]
[WhiteElo "2686"]
[BlackElo "2577"]
[Result "0-1"]
[Round "10"]
[TimeControl "180+2"]
[Date "2023.03.21"]
[WhiteClock "0:00:02"]
[BlackClock "0:01:03"]

1. b3 {[%clk 0:03:00]}  Nf6 {[%clk 0:02:59]} 2. Bb2 {[%clk 0:03:00]}  c5 {[%clk 0:03:00]} 3. Nf3 {[%clk 0:02:56]}  Nc6 {[%clk 0:03:00]} 4. e3 {[%clk 0:02:55]}  g6 {[%clk 0:03:00]} 5. d4 {[%clk 0:02:38]}  cxd4 {[%clk 0:03:01]} 6. exd4 {[%clk 0:02:38]}  d5 {[%clk 0:02:55]} 7. Nbd2 {[%clk 0:02:35]}  Bg7 {[%clk 0:02:56]} 8. g3 {[%clk 0:02:35]}  O-O {[%clk 0:02:55]} 9. Bg2 {[%clk 0:02:36]}  Bf5 {[%clk 0:02:56]} 10. O-O {[%clk 0:02:36]}  Rc8 {[%clk 0:02:54]} 11. a3 {[%clk 0:02:34]}  Ne4 {[%clk 0:02:54]} 12. Re1 {[%clk 0:02:28]}  Nxd2 {[%clk 0:02:53]} 13. Qxd2 {[%clk 0:02:23]}  Be4 {[%clk 0:02:53]} 14. Rac1 {[%clk 0:02:14]}  e6 {[%clk 0:02:52]} 15. c4 {[%clk 0:01:59]}  Qb6 {[%clk 0:02:39]} 16. b4 {[%clk 0:01:46]}  Bxf3 {[%clk 0:02:30]} 17. c5 {[%clk 0:01:45]}  Qd8 {[%clk 0:02:31]} 18. Bxf3 {[%clk 0:01:45]}  Qf6 {[%clk 0:02:31]} 19. Bg2 {[%clk 0:01:14]}  Nxd4 {[%clk 0:02:25]} 20. Kh1 {[%clk 0:01:05]}  Nb3 {[%clk 0:02:20]} 21. Bxf6 {[%clk 0:01:04]}  Nxd2 {[%clk 0:02:21]} 22. Be7 {[%clk 0:00:52]}  Rfe8 {[%clk 0:02:18]} 23. Bd6 {[%clk 0:00:53]}  b5 {[%clk 0:02:06]} 24. cxb6 {[%clk 0:00:28]}  axb6 {[%clk 0:02:07]} 25. Bf4 {[%clk 0:00:27]}  Nc4 {[%clk 0:01:51]} 26. a4 {[%clk 0:00:28]}  Ra8 {[%clk 0:01:49]} 27. Rc2 {[%clk 0:00:15]}  Bf8 {[%clk 0:01:31]} 28. b5 {[%clk 0:00:05]}  Rec8 {[%clk 0:01:27]} 29. Ra2 {[%clk 0:00:05]}  Bd6 {[%clk 0:01:19]} 30. Bg5 {[%clk 0:00:04]}  Kg7 {[%clk 0:01:20]} 31. Bf3 {[%clk 0:00:04]}  h6 {[%clk 0:01:20]} 32. Bc1 {[%clk 0:00:02]}  Be5 {[%clk 0:01:18]} 33. Bd1 {[%clk 0:00:02]}  Bf6 {[%clk 0:01:18]} 34. Bb3 {[%clk 0:00:02]}  Na5 {[%clk 0:01:18]} 35. Bc2 {[%clk 0:00:02]}  Rc4 {[%clk 0:01:18]} 36. Bd3 {[%clk 0:00:02]}  Rc3 {[%clk 0:01:19]} 37. Bf1 {[%clk 0:00:02]}  Rac8 {[%clk 0:01:19]} 38. Bd2 {[%clk 0:00:03]}  Rb3 {[%clk 0:01:12]} 39. Bxa5 {[%clk 0:00:02]}  bxa5 {[%clk 0:01:13]} 40. Rd1 {[%clk 0:00:03]}  Rcc3 {[%clk 0:01:12]} 41. Kg2 {[%clk 0:00:03]}  Be7 {[%clk 0:01:12]} 42. Rdd2 {[%clk 0:00:03]}  Bc5 {[%clk 0:01:09]} 43. Be2 {[%clk 0:00:03]}  Bb6 {[%clk 0:01:09]} 44. Bd1 {[%clk 0:00:03]}  Rb1 {[%clk 0:01:08]} 45. Bc2 {[%clk 0:00:03]}  Rb4 {[%clk 0:01:08]} 46. Bd1 {[%clk 0:00:03]}  Kf6 {[%clk 0:01:08]} 47. Bc2 {[%clk 0:00:04]}  Ke7 {[%clk 0:01:03]} 48. Bd1 {[%clk 0:00:04]}  Kd6 {[%clk 0:01:04]} 49. Bc2 {[%clk 0:00:04]}  f5 {[%clk 0:01:02]} 50. Bd1 {[%clk 0:00:04]}  e5 {[%clk 0:01:01]} 51. Bc2 {[%clk 0:00:03]}  e4 {[%clk 0:01:02]} 52. Bd1 {[%clk 0:00:03]}  d4 {[%clk 0:01:02]} 53. Re2 {[%clk 0:00:02]}  d3 {[%clk 0:01:02]} 54. Red2 {[%clk 0:00:03]}  Ke5 {[%clk 0:01:02]} 55. f4+ {[%clk 0:00:02]}  Kd4 {[%clk 0:01:03]} 0-1


[Site "https://www.chess.com"]